[Event "Live Chess"]
[Site "Chess.com"]
[Date "2024.06.02"]
[Round "-"]
[White "GwaryTek"]
[Black "NottheBishopSacrifice"]
[Result "0-1"]
[WhiteElo "1828"]
[BlackElo "2323"]
[TimeControl "300"]
[EndTime "3:49:57 PDT"]
[Termination "NottheBishopSacrifice won on time"]

1. d4 {[%clk 0:04:54.7]} 1... c6 {[%clk 0:04:59.5]} 2. c4 {[%clk 0:04:41.4]}
2... d5 {[%clk 0:04:56.3]} 3. Nf3 {[%clk 0:04:41.3]} 3... Nf6 {[%clk 0:04:54.5]}
4. Nc3 {[%clk 0:04:31.7]} 4... dxc4 {[%clk 0:04:53.4]} 5. a4 {[%clk 0:04:29.6]}
5... Bf5 {[%clk 0:04:51.7]} 6. g3 {[%clk 0:04:26.6]} 6... e6 {[%clk 0:04:49]} 7.
Ne5 {[%clk 0:04:22.4]} 7... Bb4 {[%clk 0:04:44.5]} 8. Nxc4 {[%clk 0:04:19.2]}
8... a5 {[%clk 0:04:43.4]} 9. Bg2 {[%clk 0:04:17.8]} 9... Nbd7 {[%clk 0:04:42]}
10. O-O {[%clk 0:04:14.2]} 10... O-O {[%clk 0:04:40.8]} 11. Bf4 {[%clk
0:04:07.5]} 11... Nd5 {[%clk 0:04:34.7]} 12. Bd2 {[%clk 0:04:01.1]} 12... Bg6
{[%clk 0:04:30.9]} 13. e4 {[%clk 0:03:56.4]} 13... N5f6 {[%clk 0:04:28.4]} 14.
Re1 {[%clk 0:03:54.5]} 14... Re8 {[%clk 0:04:26.1]} 15. Bg5 {[%clk 0:03:48.4]}
15... h6 {[%clk 0:04:22.6]} 16. Bf4 {[%clk 0:03:43.5]} 16... Nb6 {[%clk
0:04:15.5]} 17. Ne5 {[%clk 0:03:38]} 17... Bh7 {[%clk 0:04:13.6]} 18. Qd2 {[%clk
0:03:01.1]} 18... Nfd7 {[%clk 0:04:09.8]} 19. Nf3 {[%clk 0:02:40.1]} 19... Nc4
{[%clk 0:04:03.6]} 20. Qc1 {[%clk 0:02:35.8]} 20... Nd6 {[%clk 0:04:00.7]} 21.
Bxh6 {[%clk 0:02:22.9]} 21... gxh6 {[%clk 0:03:54.3]} 22. Qxh6 {[%clk
0:02:20.4]} 22... Qe7 {[%clk 0:03:41.9]} 23. e5 {[%clk 0:01:17]} 23... Nf5
{[%clk 0:03:38.2]} 24. Qf4 {[%clk 0:01:16.1]} 24... Qf8 {[%clk 0:03:33.2]} 25.
g4 {[%clk 0:00:40.7]} 25... Ne7 {[%clk 0:03:30.9]} 26. Re3 {[%clk 0:00:18.3]}
26... Nd5 {[%clk 0:03:25.9]} 27. Nxd5 {[%clk 0:00:16.5]} 27... cxd5 {[%clk
0:03:25.7]} 28. Ng5 {[%clk 0:00:14.3]} 28... Qg7 {[%clk 0:03:22.7]} 29. Rh3
{[%clk 0:00:13.1]} 29... Bg6 {[%clk 0:03:22.2]} 30. Rf1 {[%clk 0:00:04.7]} 30...
Be7 {[%clk 0:03:21.2]} 31. Nf3 {[%clk 0:00:03.1]} 31... Rac8 {[%clk 0:03:17.2]}
32. g5 {[%clk 0:00:01.4]} 32... Nf8 {[%clk 0:03:13.5]} 0-1

[Event "Live Chess"]
[Site "Chess.com"]
[Date "2024.06.02"]
[Round "-"]
[White "Crowded_House"]
[Black "Grace6363"]
[Result "1-0"]
[WhiteElo "1651"]
[BlackElo "1144"]
[TimeControl "300"]
[EndTime "3:50:01 PDT"]
[Termination "Crowded_House won on time"]

1. d4 {[%clk 0:04:55.7]} 1... Nf6 {[%clk 0:04:55.1]} 2. Bg5 {[%clk 0:04:54.9]}
2... e6 {[%clk 0:04:52.2]} 3. e3 {[%clk 0:04:53.1]} 3... Be7 {[%clk 0:04:49.6]}
4. Bd3 {[%clk 0:04:51.1]} 4... O-O {[%clk 0:04:41.8]} 5. Nf3 {[%clk 0:04:50.1]}
5... h6 {[%clk 0:04:33.1]} 6. Bh4 {[%clk 0:04:48.5]} 6... Nc6 {[%clk 0:04:25.8]}
7. c3 {[%clk 0:04:46.9]} 7... d6 {[%clk 0:04:12.2]} 8. O-O {[%clk 0:04:44.9]}
8... b6 {[%clk 0:03:58.1]} 9. Qc2 {[%clk 0:04:44.1]} 9... g5 {[%clk 0:03:45.6]}
10. Bg3 {[%clk 0:04:41.5]} 10... e5 {[%clk 0:03:41.7]} 11. dxe5 {[%clk
0:04:39.8]} 11... dxe5 {[%clk 0:03:36.2]} 12. Nxe5 {[%clk 0:04:30.7]} 12... Qd5
{[%clk 0:03:12.2]} 13. Nxc6 {[%clk 0:04:11.1]} 13... Qxc6 {[%clk 0:03:07.3]} 14.
Nd2 {[%clk 0:04:02.3]} 14... Bb7 {[%clk 0:03:05.6]} 15. e4 {[%clk 0:03:46.9]}
15... Rad8 {[%clk 0:02:49.5]} 16. f3 {[%clk 0:03:40.1]} 16... Bc5+ {[%clk
0:02:43.6]} 17. Bf2 {[%clk 0:03:31.4]} 17... g4 {[%clk 0:02:27.7]} 18. Bxc5
{[%clk 0:03:25]} 18... Qxc5+ {[%clk 0:02:26.4]} 19. Kh1 {[%clk 0:03:24.2]} 19...
gxf3 {[%clk 0:02:23.4]} 20. gxf3 {[%clk 0:03:17.7]} 20... Kh8 {[%clk 0:01:54.9]}
21. Rae1 {[%clk 0:03:11.3]} 21... Rg8 {[%clk 0:01:52.1]} 22. Nb3 {[%clk
0:03:07.8]} 22... Qg5 {[%clk 0:01:46.1]} 23. Rg1 {[%clk 0:03:01.7]} 23... Qf4
{[%clk 0:01:43]} 24. Qe2 {[%clk 0:02:48.6]} 24... Rxg1+ {[%clk 0:01:25.9]} 25.
Rxg1 {[%clk 0:02:47]} 25... c5 {[%clk 0:01:11.2]} 26. Rg3 {[%clk 0:01:47.6]}
26... h5 {[%clk 0:00:45.8]} 27. Ba6 {[%clk 0:01:30.9]} 27... Bc6 {[%clk
0:00:21.3]} 28. Bd3 {[%clk 0:01:24]} 28... h4 {[%clk 0:00:19.3]} 29. Rg2 {[%clk
0:01:21.2]} 29... h3 {[%clk 0:00:18.3]} 30. Rg3 {[%clk 0:01:19.9]} 30... Bd7
{[%clk 0:00:16.3]} 31. Qd2 {[%clk 0:01:14.8]} 31... Qxd2 {[%clk 0:00:13.7]} 32.
Nxd2 {[%clk 0:01:14.1]} 32... Be6 {[%clk 0:00:12.6]} 33. Bc4 {[%clk 0:01:12.3]}
33... Bxc4 {[%clk 0:00:11.4]} 34. Nxc4 {[%clk 0:01:11.1]} 34... Rd1+ {[%clk
0:00:10.6]} 35. Rg1 {[%clk 0:01:10.1]} 35... Rxg1+ {[%clk 0:00:07.6]} 36. Kxg1
{[%clk 0:01:09.2]} 36... Nd7 {[%clk 0:00:06]} 37. Nd6 {[%clk 0:01:07.7]} 37...
Ne5 {[%clk 0:00:04.3]} 38. Nc8 {[%clk 0:01:06.5]} 38... Kg7 {[%clk 0:00:04.2]}
39. Nxa7 {[%clk 0:01:05.5]} 39... Nd3 {[%clk 0:00:03.4]} 40. Nc8 {[%clk
0:01:03.9]} 40... Ne1 {[%clk 0:00:02.3]} 41. Kf2 {[%clk 0:01:00.6]} 41... Nd3+
{[%clk 0:00:01.5]} 42. Ke3 {[%clk 0:00:58.8]} 42... Nxb2 {[%clk 0:00:00.2]} 43.
Nxb6 {[%clk 0:00:58.4]} 1-0

[Event "Live Chess"]
[Site "Chess.com"]
[Date "2024.06.02"]
[Round "-"]
[White "dereklimmo"]
[Black "TC2304"]
[Result "0-1"]
[WhiteElo "2257"]
[BlackElo "2336"]
[TimeControl "300"]
[EndTime "3:50:10 PDT"]
[Termination "TC2304 won - game abandoned"]

1. e4 {[%clk 0:04:57.7]} 1... Nc6 {[%clk 0:04:59]} 2. d4 {[%clk 0:04:56.9]} 2...
e5 {[%clk 0:04:58.2]} 3. d5 {[%clk 0:04:56.1]} 3... Nce7 {[%clk 0:04:57.3]} 4.
c4 {[%clk 0:04:55.1]} 4... Ng6 {[%clk 0:04:56.8]} 5. Nc3 {[%clk 0:04:54.9]} 5...
Bb4 {[%clk 0:04:55.2]} 6. Bd3 {[%clk 0:04:53.7]} 6... Nf6 {[%clk 0:04:54.6]} 7.
Ne2 {[%clk 0:04:52.7]} 7... O-O {[%clk 0:04:53.8]} 8. Bd2 {[%clk 0:04:51.9]}
8... d6 {[%clk 0:04:51.9]} 9. a3 {[%clk 0:04:50.9]} 9... Bc5 {[%clk 0:04:32.4]}
10. b4 {[%clk 0:04:49.2]} 10... Bb6 {[%clk 0:04:31.9]} 11. Na4 {[%clk
0:04:47.5]} 11... c6 {[%clk 0:04:28.7]} 12. Nxb6 {[%clk 0:04:46]} 12... axb6
{[%clk 0:04:28]} 13. Qb3 {[%clk 0:04:41.4]} 13... Nh5 {[%clk 0:04:24.5]} 14. g3
{[%clk 0:04:39.8]} 14... f5 {[%clk 0:04:07.7]} 15. O-O-O {[%clk 0:04:39.1]}
15... fxe4 {[%clk 0:04:03]} 16. Bxe4 {[%clk 0:04:39]} 16... Rxf2 {[%clk
0:04:01.9]} 17. Qd3 {[%clk 0:04:30.3]} 17... Nf6 {[%clk 0:03:53]} 18. Bxg6
{[%clk 0:04:16]} 18... hxg6 {[%clk 0:03:52.9]} 19. Bg5 {[%clk 0:03:52.9]} 19...
Bf5 {[%clk 0:03:44.9]} 20. Qe3 {[%clk 0:03:48.3]} 20... Rxe2 {[%clk 0:03:44.2]}
21. Qxe2 {[%clk 0:03:47]} 21... Rxa3 {[%clk 0:03:43.9]} 22. Kb2 {[%clk
0:03:37.4]} 22... Ra4 {[%clk 0:03:31.1]} 23. Qd2 {[%clk 0:03:10.8]} 23... c5
{[%clk 0:03:29.2]} 24. Bxf6 {[%clk 0:02:41.7]} 24... gxf6 {[%clk 0:03:25]} 25.
Kb3 {[%clk 0:02:36.5]} 25... Rxb4+ {[%clk 0:03:24.2]} 26. Kc3 {[%clk 0:02:36.4]}
26... b5 {[%clk 0:03:20.1]} 27. cxb5 {[%clk 0:02:32.6]} 27... Qa5 {[%clk
0:03:19.7]} 28. Ra1 {[%clk 0:02:31.3]} 28... Ra4+ {[%clk 0:03:18.5]} 0-1

[Event "Live Chess"]
[Site "Chess.com"]
[Date "2024.06.02"]
[Round "-"]
[White "upoe610"]
[Black "Trendle"]
[Result "1-0"]
[WhiteElo "2132"]
[BlackElo "2620"]
[TimeControl "300"]
[EndTime "3:50:34 PDT"]
[Termination "upoe610 won by resignation"]

1. c4 {[%clk 0:04:54.4]} 1... f5 {[%clk 0:04:58.5]} 2. g3 {[%clk 0:04:51.6]}
2... Nf6 {[%clk 0:04:58]} 3. Bg2 {[%clk 0:04:51]} 3... d6 {[%clk 0:04:56.4]} 4.
Nc3 {[%clk 0:04:49.6]} 4... g6 {[%clk 0:04:56]} 5. b4 {[%clk 0:04:47]} 5... Bg7
{[%clk 0:04:55.1]} 6. Bb2 {[%clk 0:04:46]} 6... O-O {[%clk 0:04:54.7]} 7. Nf3
{[%clk 0:04:41.6]} 7... e5 {[%clk 0:04:54.2]} 8. d3 {[%clk 0:04:37.9]} 8... Nc6
{[%clk 0:04:44.7]} 9. a3 {[%clk 0:04:35.6]} 9... Kh8 {[%clk 0:04:41.4]} 10. O-O
{[%clk 0:04:32.2]} 10... Be6 {[%clk 0:04:40.5]} 11. e3 {[%clk 0:04:29.7]} 11...
Bg8 {[%clk 0:04:34.7]} 12. b5 {[%clk 0:04:25.1]} 12... Ne7 {[%clk 0:04:31.4]}
13. Nd2 {[%clk 0:04:22.9]} 13... g5 {[%clk 0:04:28.6]} 14. a4 {[%clk 0:04:13.4]}
14... Rb8 {[%clk 0:04:27.1]} 15. a5 {[%clk 0:04:12.3]} 15... f4 {[%clk
0:04:23.5]} 16. exf4 {[%clk 0:04:06.5]} 16... gxf4 {[%clk 0:04:21.3]} 17. Nce4
{[%clk 0:04:05.8]} 17... Nf5 {[%clk 0:04:18]} 18. Nxf6 {[%clk 0:04:03.6]} 18...
Qxf6 {[%clk 0:04:16.4]} 19. Ne4 {[%clk 0:04:03]} 19... Qg6 {[%clk 0:04:14.6]}
20. Kh1 {[%clk 0:03:41.3]} 20... Qh6 {[%clk 0:04:06.3]} 21. Qg4 {[%clk
0:03:33.9]} 21... Be6 {[%clk 0:04:01.7]} 22. Qg5 {[%clk 0:03:30.9]} 22... Rbd8
{[%clk 0:03:44.6]} 23. gxf4 {[%clk 0:03:06.6]} 23... exf4 {[%clk 0:03:14.2]} 24.
Qxh6 {[%clk 0:02:59.1]} 24... Nxh6 {[%clk 0:03:14.1]} 25. Bxg7+ {[%clk
0:02:57.3]} 25... Kxg7 {[%clk 0:03:14]} 26. Ng5 {[%clk 0:02:56.9]} 26... Bf5
{[%clk 0:03:10.5]} 27. Bxb7 {[%clk 0:02:51.1]} 27... Bxd3 {[%clk 0:02:59]} 28.
Ne6+ {[%clk 0:02:49]} 28... Kf6 {[%clk 0:02:57.2]} 29. Nxd8 {[%clk 0:02:43.6]}
29... Bxf1 {[%clk 0:02:51.8]} 30. Rxf1 {[%clk 0:02:43.5]} 30... Rxd8 {[%clk
0:02:50.1]} 31. Re1 {[%clk 0:02:39.2]} 31... Ng4 {[%clk 0:02:44.1]} 32. Kg2
{[%clk 0:02:31.7]} 32... Ne5 {[%clk 0:02:42]} 33. Bd5 {[%clk 0:02:29]} 33... Rd7
{[%clk 0:02:38.9]} 34. Re4 {[%clk 0:02:18.5]} 34... Kf5 {[%clk 0:02:31.7]} 35.
Kf1 {[%clk 0:02:13.5]} 35... Rg7 {[%clk 0:02:26.6]} 36. Rd4 {[%clk 0:01:56.7]}
36... h5 {[%clk 0:02:06.5]} 37. Be4+ {[%clk 0:01:54.9]} 37... Kf6 {[%clk
0:02:05.9]} 38. Bd5 {[%clk 0:01:49]} 38... Rg4 {[%clk 0:01:59.9]} 39. h3 {[%clk
0:01:42.2]} 39... Rh4 {[%clk 0:01:59.3]} 40. Bg2 {[%clk 0:01:31.2]} 40... Nf7
{[%clk 0:01:34.3]} 41. f3 {[%clk 0:01:22.4]} 41... Ng5 {[%clk 0:01:31.2]} 42.
Kf2 {[%clk 0:01:09.1]} 42... Ke5 {[%clk 0:01:27.7]} 43. Rd5+ {[%clk 0:01:06.8]}
43... Kf6 {[%clk 0:01:27.3]} 44. Rd4 {[%clk 0:00:53.3]} 44... Ne6 {[%clk
0:01:19.6]} 45. Rd1 {[%clk 0:00:47.3]} 45... Ng7 {[%clk 0:01:09.2]} 46. b6
{[%clk 0:00:42]} 46... axb6 {[%clk 0:01:05.7]} 47. a6 {[%clk 0:00:40.8]} 1-0

[Event "Live Chess"]
[Site "Chess.com"]
[Date "2024.06.02"]
[Round "-"]
[White "JanMur7"]
[Black "dmitro74"]
[Result "1-0"]
[WhiteElo "2299"]
[BlackElo "1729"]
[TimeControl "300"]
[EndTime "3:50:47 PDT"]
[Termination "JanMur7 won by checkmate"]

1. c4 {[%clk 0:04:58.1]} 1... e5 {[%clk 0:04:58.6]} 2. Nc3 {[%clk 0:04:56.7]}
2... f5 {[%clk 0:04:57.3]} 3. d4 {[%clk 0:04:52.5]} 3... Nf6 {[%clk 0:04:55.5]}
4. dxe5 {[%clk 0:04:51.1]} 4... Ne4 {[%clk 0:04:54.2]} 5. Nxe4 {[%clk
0:04:49.4]} 5... fxe4 {[%clk 0:04:53]} 6. e6 {[%clk 0:04:43]} 6... d6 {[%clk
0:04:43.9]} 7. Qd5 {[%clk 0:04:41.1]} 7... c6 {[%clk 0:04:38.5]} 8. Qxe4 {[%clk
0:04:39.4]} 8... Be7 {[%clk 0:04:36.5]} 9. e3 {[%clk 0:04:34.8]} 9... O-O {[%clk
0:04:34.8]} 10. Bd3 {[%clk 0:04:33.4]} 10... g6 {[%clk 0:04:31.9]} 11. h4 {[%clk
0:04:30.6]} 11... Rf5 {[%clk 0:04:19.6]} 12. h5 {[%clk 0:04:25.4]} 12... Re5
{[%clk 0:04:16.9]} 13. Qg4 {[%clk 0:04:24]} 13... Rg5 {[%clk 0:04:13.1]} 14. Qd4
{[%clk 0:04:14.1]} 14... Bf6 {[%clk 0:04:06.3]} 15. Qf4 {[%clk 0:04:11.1]} 15...
Bxe6 {[%clk 0:03:32.8]} 16. hxg6 {[%clk 0:04:06]} 16... h5 {[%clk 0:03:25.9]}
17. Nf3 {[%clk 0:03:53]} 17... Rg4 {[%clk 0:03:23.6]} 18. Qh2 {[%clk 0:03:41.5]}
18... h4 {[%clk 0:03:16.3]} 19. g3 {[%clk 0:03:32.2]} 19... Kg7 {[%clk
0:03:01.4]} 20. Nxh4 {[%clk 0:03:24.1]} 20... Nd7 {[%clk 0:02:55.9]} 21. Nf5+
{[%clk 0:03:19]} 21... Kxg6 {[%clk 0:02:31.4]} 22. Qh7+ {[%clk 0:03:13.3]} 22...
Kg5 {[%clk 0:02:28.9]} 23. Qh6# {[%clk 0:03:13.2]} 1-0

[Event "Live Chess"]
[Site "Chess.com"]
[Date "2024.06.02"]
[Round "-"]
[White "defenderalist"]
[Black "DfNn"]
[Result "0-1"]
[WhiteElo "1527"]
[BlackElo "1571"]
[TimeControl "300"]
[EndTime "3:50:55 PDT"]
[Termination "DfNn won by resignation"]

1. e4 {[%clk 0:04:58.5]} 1... e5 {[%clk 0:04:58.8]} 2. f4 {[%clk 0:04:57.3]}
2... exf4 {[%clk 0:04:56.8]} 3. Nf3 {[%clk 0:04:56.7]} 3... g5 {[%clk
0:04:55.8]} 4. Bc4 {[%clk 0:04:53.6]} 4... g4 {[%clk 0:04:54.7]} 5. Ne5 {[%clk
0:04:49.7]} 5... Qh4+ {[%clk 0:04:52.9]} 6. Kf1 {[%clk 0:04:38.5]} 6... d6
{[%clk 0:04:50.7]} 7. Nxf7 {[%clk 0:04:34.6]} 7... Nf6 {[%clk 0:04:45.9]} 8. d3
{[%clk 0:04:26.8]} 8... Rg8 {[%clk 0:04:42.5]} 9. Bxf4 {[%clk 0:04:21.7]} 9...
Nc6 {[%clk 0:04:38.5]} 10. g3 {[%clk 0:04:17.5]} 10... Qh3+ {[%clk 0:04:34.2]}
11. Kf2 {[%clk 0:04:16.4]} 11... Rg7 {[%clk 0:04:26.5]} 12. Ng5 {[%clk
0:04:10.5]} 12... Qh5 {[%clk 0:04:23.4]} 13. Nc3 {[%clk 0:04:02.1]} 13... Rxg5
{[%clk 0:04:18.2]} 14. Bxg5 {[%clk 0:03:58.6]} 14... Qxg5 {[%clk 0:04:18.1]} 15.
Rf1 {[%clk 0:03:53.6]} 15... Nd4 {[%clk 0:04:15]} 16. Nd5 {[%clk 0:03:41.2]}
16... Nxd5 {[%clk 0:04:10.3]} 17. Bxd5 {[%clk 0:03:39.1]} 17... c6 {[%clk
0:04:09]} 18. Bb3 {[%clk 0:03:31]} 18... Qc5 {[%clk 0:04:02.2]} 19. Kg2 {[%clk
0:03:29.4]} 19... Bg7 {[%clk 0:03:54.4]} 20. Bf7+ {[%clk 0:03:25]} 20... Ke7
{[%clk 0:03:51.5]} 21. Bh5 {[%clk 0:03:19.8]} 21... Qxh5 {[%clk 0:03:46]} 22. c3
{[%clk 0:03:13.8]} 22... Qh3+ {[%clk 0:03:42.4]} 23. Kg1 {[%clk 0:03:12.3]}
23... Nf3+ {[%clk 0:03:39.5]} 24. Rxf3 {[%clk 0:03:11.1]} 24... gxf3 {[%clk
0:03:38.1]} 25. Qxf3 {[%clk 0:03:10.8]} 25... Be6 {[%clk 0:03:34.1]} 26. d4
{[%clk 0:02:55.6]} 26... Rf8 {[%clk 0:03:30.8]} 27. Qe3 {[%clk 0:02:53.7]} 27...
h5 {[%clk 0:03:25.5]} 28. Qg5+ {[%clk 0:02:50.6]} 28... Bf6 {[%clk 0:03:20.6]}
29. Qh6 {[%clk 0:02:36.5]} 29... Qg4 {[%clk 0:03:13]} 30. Rf1 {[%clk 0:02:28.8]}
30... Rf7 {[%clk 0:03:06.1]} 31. e5 {[%clk 0:02:25.9]} 31... dxe5 {[%clk
0:03:01.8]} 32. dxe5 {[%clk 0:01:59.9]} 32... Bxe5 {[%clk 0:02:54.1]} 0-1

[Event "Live Chess"]
[Site "Chess.com"]
[Date "2024.06.02"]
[Round "-"]
[White "Pandreq"]
[Black "MagnersCarlsberg2870"]
[Result "1-0"]
[WhiteElo "1234"]
[BlackElo "1780"]
[TimeControl "300"]
[EndTime "3:51:58 PDT"]
[Termination "Pandreq won by resignation"]

1. d4 {[%clk 0:04:57.6]} 1... Nf6 {[%clk 0:04:58.1]} 2. c4 {[%clk 0:04:56.5]}
2... e5 {[%clk 0:04:56.3]} 3. d5 {[%clk 0:04:55.3]} 3... Bc5 {[%clk 0:04:54.4]}
4. Nc3 {[%clk 0:04:52.5]} 4... d6 {[%clk 0:04:49.2]} 5. Nf3 {[%clk 0:04:47.8]}
5... Ng4 {[%clk 0:04:46.8]} 6. e3 {[%clk 0:04:46.3]} 6... Qf6 {[%clk 0:04:39.3]}
7. Ne4 {[%clk 0:04:43.7]} 7... Qe7 {[%clk 0:04:28.4]} 8. Nxc5 {[%clk 0:04:41.6]}
8... dxc5 {[%clk 0:04:27.6]} 9. h3 {[%clk 0:04:31.3]} 9... Nf6 {[%clk
0:04:25.8]} 10. Qc2 {[%clk 0:04:22]} 10... g6 {[%clk 0:04:23.7]} 11. e4 {[%clk
0:04:20.4]} 11... Nh5 {[%clk 0:04:09.9]} 12. Bg5 {[%clk 0:04:15.3]} 12... f6
{[%clk 0:04:07.7]} 13. Be3 {[%clk 0:04:04.7]} 13... h6 {[%clk 0:04:03.7]} 14.
Nh4 {[%clk 0:03:57]} 14... f5 {[%clk 0:03:52.8]} 15. Nxg6 {[%clk 0:03:51.4]}
15... Qg7 {[%clk 0:03:46.7]} 16. Nxh8 {[%clk 0:03:48.1]} 16... Qxh8 {[%clk
0:03:45.8]} 17. Bxc5 {[%clk 0:03:34.3]} 17... Na6 {[%clk 0:03:39.6]} 18. Ba3
{[%clk 0:03:23.4]} 18... Ng7 {[%clk 0:03:32.1]} 19. b3 {[%clk 0:03:18.7]} 19...
fxe4 {[%clk 0:03:28.6]} 20. Qxe4 {[%clk 0:03:14.3]} 20... Nf5 {[%clk 0:03:24.3]}
21. Bb2 {[%clk 0:03:08.7]} 21... Nd6 {[%clk 0:02:57.8]} 22. Bxe5 {[%clk
0:03:01.9]} 22... Nxe4 {[%clk 0:02:54]} 23. Bxh8 {[%clk 0:02:59.6]} 23... Bf5
{[%clk 0:02:49.2]} 24. Bg7 {[%clk 0:02:34.8]} 24... O-O-O {[%clk 0:02:45.8]} 25.
Bxh6 {[%clk 0:02:30.2]} 25... Nb4 {[%clk 0:02:43.7]} 26. Kd1 {[%clk 0:01:49.2]}
26... Nc3+ {[%clk 0:02:38.4]} 27. Kc1 {[%clk 0:01:38.5]} 27... Re8 {[%clk
0:02:33.6]} 28. Bd2 {[%clk 0:01:28.3]} 28... Nd3+ {[%clk 0:02:20.2]} 29. Bxd3
{[%clk 0:01:21.6]} 29... Bxd3 {[%clk 0:02:15.8]} 1-0

[Event "Live Chess"]
[Site "Chess.com"]
[Date "2024.06.02"]
[Round "-"]
[White "f4nomore"]
[Black "dhairyapandyauk"]
[Result "1-0"]
[WhiteElo "1268"]
[BlackElo "1629"]
[TimeControl "300"]
[EndTime "3:52:01 PDT"]
[Termination "f4nomore won by checkmate"]

1. Nc3 {[%clk 0:04:55.7]} 1... d5 {[%clk 0:04:58.2]} 2. d4 {[%clk 0:04:54.5]}
2... f6 {[%clk 0:04:57.3]} 3. e3 {[%clk 0:04:50]} 3... Bf5 {[%clk 0:04:56.2]} 4.
Be2 {[%clk 0:04:44.8]} 4... e5 {[%clk 0:04:55]} 5. dxe5 {[%clk 0:04:42]} 5...
fxe5 {[%clk 0:04:54.9]} 6. Bh5+ {[%clk 0:04:34.5]} 6... g6 {[%clk 0:04:52.9]} 7.
Bg4 {[%clk 0:04:32.5]} 7... Bxg4 {[%clk 0:04:49.7]} 8. Qxg4 {[%clk 0:04:29.8]}
8... Nf6 {[%clk 0:04:48.3]} 9. Qe6+ {[%clk 0:04:21.3]} 9... Qe7 {[%clk
0:04:46.6]} 10. Qc8+ {[%clk 0:04:12.3]} 10... Kf7 {[%clk 0:04:43.1]} 11. Nf3
{[%clk 0:04:07]} 11... Bg7 {[%clk 0:04:32]} 12. Qxb7 {[%clk 0:04:04.9]} 12... d4
{[%clk 0:04:15]} 13. Qb3+ {[%clk 0:03:49.1]} 13... Kf8 {[%clk 0:04:05.5]} 14.
Nd5 {[%clk 0:03:38.6]} 14... Nxd5 {[%clk 0:03:57.2]} 15. Qxd5 {[%clk 0:03:35.6]}
15... c6 {[%clk 0:03:57.1]} 16. Qe4 {[%clk 0:03:24.3]} 16... dxe3 {[%clk
0:03:50.4]} 17. Bxe3 {[%clk 0:03:21.9]} 17... Qe6 {[%clk 0:03:47.8]} 18. Bc5+
{[%clk 0:03:14.7]} 18... Kg8 {[%clk 0:03:39.9]} 19. Rd1 {[%clk 0:03:08.3]} 19...
Nd7 {[%clk 0:03:38.2]} 20. O-O {[%clk 0:02:59]} 20... Nxc5 {[%clk 0:03:33.6]}
21. Qb4 {[%clk 0:02:48.9]} 21... Nd7 {[%clk 0:03:23.6]} 22. Qb7 {[%clk 0:02:32]}
22... Rd8 {[%clk 0:03:21.8]} 23. Qxa7 {[%clk 0:02:25.8]} 23... Kf7 {[%clk
0:03:20.1]} 24. Ng5+ {[%clk 0:02:23.1]} 24... Ke7 {[%clk 0:03:18.7]} 25. Nxe6
{[%clk 0:02:21.4]} 25... Kxe6 {[%clk 0:03:18.6]} 26. Qe3 {[%clk 0:02:13.3]}
26... h5 {[%clk 0:03:14.2]} 27. c3 {[%clk 0:02:11.7]} 27... Bh6 {[%clk
0:03:11.2]} 28. f4 {[%clk 0:02:08]} 28... Rhe8 {[%clk 0:03:03.9]} 29. Qe4 {[%clk
0:02:04.6]} 29... Nf6 {[%clk 0:02:41.4]} 30. Qxe5+ {[%clk 0:01:51.6]} 30... Kf7
{[%clk 0:02:39.4]} 31. Qc7+ {[%clk 0:01:43.6]} 31... Nd7 {[%clk 0:02:16.5]} 32.
Rxd7+ {[%clk 0:01:38.4]} 32... Rxd7 {[%clk 0:02:16.4]} 33. Qxd7+ {[%clk
0:01:36.8]} 33... Re7 {[%clk 0:02:16.3]} 34. Qxc6 {[%clk 0:01:33.5]} 34... Kg7
{[%clk 0:02:11.2]} 35. Qd5 {[%clk 0:01:28.1]} 35... Rf7 {[%clk 0:02:09.8]} 36.
Qd4+ {[%clk 0:01:26.2]} 36... Kh7 {[%clk 0:02:07.9]} 37. g3 {[%clk 0:01:22.6]}
37... Bg7 {[%clk 0:02:02.8]} 38. Qd5 {[%clk 0:01:17.3]} 38... Re7 {[%clk
0:01:59.4]} 39. c4 {[%clk 0:01:06.6]} 39... Re2 {[%clk 0:01:57.2]} 40. Qd3
{[%clk 0:00:58.7]} 40... Rxb2 {[%clk 0:01:55.1]} 41. Rc1 {[%clk 0:00:55.1]}
41... Rxa2 {[%clk 0:01:53.2]} 42. c5 {[%clk 0:00:49.6]} 42... Ra4 {[%clk
0:01:51]} 43. c6 {[%clk 0:00:29.3]} 43... Bd4+ {[%clk 0:01:47.3]} 44. Kg2 {[%clk
0:00:27.1]} 44... Ra2+ {[%clk 0:01:45.2]} 45. Kh3 {[%clk 0:00:25.3]} 45... Bf6
{[%clk 0:01:43.1]} 46. c7 {[%clk 0:00:23.9]} 46... h4 {[%clk 0:01:41.7]} 47.
c8=Q {[%clk 0:00:21.5]} 47... hxg3 {[%clk 0:01:39.2]} 48. hxg3 {[%clk
0:00:18.8]} 48... Kh6 {[%clk 0:01:34.4]} 49. Qg4 {[%clk 0:00:15.6]} 49... Bd4
{[%clk 0:01:24.6]} 50. Qdxg6# {[%clk 0:00:13.7]} 1-0

[Event "Live Chess"]
[Site "Chess.com"]
[Date "2024.06.02"]
[Round "-"]
[White "Mikhail_Golubev"]
[Black "Andriy_Yaremovych"]
[Result "1-0"]
[WhiteElo "2515"]
[BlackElo "1588"]
[TimeControl "300"]
[EndTime "3:52:09 PDT"]
[Termination "Mikhail_Golubev won by checkmate"]

1. e4 {[%clk 0:04:56.1]} 1... b6 {[%clk 0:04:57.6]} 2. d4 {[%clk 0:04:52.7]}
2... Bb7 {[%clk 0:04:57.5]} 3. Bd3 {[%clk 0:04:51.8]} 3... Nf6 {[%clk
0:04:56.6]} 4. Qe2 {[%clk 0:04:49.5]} 4... e6 {[%clk 0:04:55.6]} 5. Nf3 {[%clk
0:04:47.7]} 5... Nc6 {[%clk 0:04:54.6]} 6. e5 {[%clk 0:04:37.3]} 6... Nd5 {[%clk
0:04:52.9]} 7. a3 {[%clk 0:04:36.5]} 7... h6 {[%clk 0:04:51.6]} 8. c4 {[%clk
0:04:34.4]} 8... Nde7 {[%clk 0:04:50.2]} 9. Nc3 {[%clk 0:04:33.6]} 9... d5
{[%clk 0:04:49.2]} 10. exd6 {[%clk 0:04:11.7]} 10... cxd6 {[%clk 0:04:49.1]} 11.
d5 {[%clk 0:04:04.6]} 11... exd5 {[%clk 0:04:42.5]} 12. cxd5 {[%clk 0:04:02.8]}
12... Nb8 {[%clk 0:04:37.6]} 13. O-O {[%clk 0:03:56.6]} 13... g6 {[%clk
0:04:34.3]} 14. Re1 {[%clk 0:03:49.7]} 14... Bg7 {[%clk 0:04:32.8]} 15. Bf4
{[%clk 0:03:35.3]} 15... a6 {[%clk 0:04:30.9]} 16. Ne4 {[%clk 0:03:18.3]} 16...
O-O {[%clk 0:04:24.8]} 17. Nxd6 {[%clk 0:03:08.2]} 17... Nxd5 {[%clk 0:04:18.4]}
18. Bg3 {[%clk 0:02:56.7]} 18... Bc6 {[%clk 0:04:10.8]} 19. Be4 {[%clk
0:02:07.6]} 19... Ne7 {[%clk 0:04:05.1]} 20. Rad1 {[%clk 0:02:00.3]} 20... Nd7
{[%clk 0:03:59.8]} 21. Bxc6 {[%clk 0:01:40.7]} 21... Nxc6 {[%clk 0:03:59.7]} 22.
Qe4 {[%clk 0:01:30.5]} 22... Ncb8 {[%clk 0:03:51.2]} 23. Qxa8 {[%clk 0:01:27.9]}
23... Qf6 {[%clk 0:03:48.5]} 24. Ne5 {[%clk 0:01:13.5]} 24... Nxe5 {[%clk
0:03:39.9]} 25. Bxe5 {[%clk 0:01:10.8]} 25... Qg5 {[%clk 0:03:35.4]} 26. Nxf7
{[%clk 0:01:00.1]} 26... Kxf7 {[%clk 0:03:31.3]} 27. Qb7+ {[%clk 0:00:58.3]}
27... Kg8 {[%clk 0:03:29.7]} 28. Qxg7# {[%clk 0:00:55.9]} 1-0